[Event "Live Chess"]
[Site "Chess.com"]
[Date "2024.06.02"]
[Round "-"]
[White "Ferrarifan27"]
[Black "silunn"]
[Result "1-0"]
[WhiteElo "2132"]
[BlackElo "2139"]
[TimeControl "300"]
[EndTime "0:58:58 PDT"]
[Termination "Ferrarifan27 won by resignation"]

1. e4 {[%clk 0:04:55.7]} 1... e6 {[%clk 0:04:59.9]} 2. d4 {[%clk 0:04:53.2]}
2... d5 {[%clk 0:04:59.8]} 3. Nc3 {[%clk 0:04:50.9]} 3... Nf6 {[%clk 0:04:57.5]}
4. Bg5 {[%clk 0:04:48.7]} 4... dxe4 {[%clk 0:04:50.4]} 5. Nxe4 {[%clk
0:04:46.9]} 5... Be7 {[%clk 0:04:47.6]} 6. Nxf6+ {[%clk 0:04:42.5]} 6... Bxf6
{[%clk 0:04:45.6]} 7. Bxf6 {[%clk 0:04:39.7]} 7... Qxf6 {[%clk 0:04:43.7]} 8.
Nf3 {[%clk 0:04:39.3]} 8... Nd7 {[%clk 0:04:30.7]} 9. Bb5 {[%clk 0:04:30]} 9...
O-O {[%clk 0:04:26.1]} 10. O-O {[%clk 0:04:28.9]} 10... c6 {[%clk 0:04:20.5]}
11. Bd3 {[%clk 0:04:26.4]} 11... e5 {[%clk 0:04:16.8]} 12. dxe5 {[%clk
0:04:21.5]} 12... Nxe5 {[%clk 0:04:16.7]} 13. Nxe5 {[%clk 0:04:20.4]} 13... Qxe5
{[%clk 0:04:16.6]} 14. Re1 {[%clk 0:04:19.3]} 14... Qxb2 {[%clk 0:04:13.5]} 15.
Qh5 {[%clk 0:04:10.9]} 15... g6 {[%clk 0:04:10.1]} 16. Qh6 {[%clk 0:04:07.9]}
16... Qg7 {[%clk 0:03:53.1]} 17. Qh4 {[%clk 0:04:04.2]} 17... Be6 {[%clk
0:03:49.3]} 18. Rab1 {[%clk 0:04:01.1]} 18... b6 {[%clk 0:03:44.2]} 19. a4
{[%clk 0:03:57.9]} 19... Rfd8 {[%clk 0:03:19]} 20. a5 {[%clk 0:03:44.1]} 20...
Rab8 {[%clk 0:03:12.5]} 21. axb6 {[%clk 0:03:41.3]} 21... axb6 {[%clk
0:03:10.9]} 22. Rxb6 {[%clk 0:03:31.6]} 22... Qc3 {[%clk 0:02:30.9]} 23. Rbb1
{[%clk 0:03:28.6]} 23... Rxb1 {[%clk 0:02:16.9]} 24. Rxb1 {[%clk 0:03:27]} 24...
Qa5 {[%clk 0:01:52.8]} 25. h3 {[%clk 0:03:06.3]} 25... Re8 {[%clk 0:01:46.7]}
26. Qb4 {[%clk 0:03:00.6]} 26... Qxb4 {[%clk 0:01:45]} 27. Rxb4 {[%clk
0:02:59.1]} 27... Bd5 {[%clk 0:01:43.8]} 28. Kf1 {[%clk 0:02:53.1]} 28... c5
{[%clk 0:01:35.4]} 29. Rb5 {[%clk 0:02:50.6]} 29... Rc8 {[%clk 0:01:33.3]} 30.
c4 {[%clk 0:02:47.2]} 30... Bc6 {[%clk 0:01:30.9]} 31. Ra5 {[%clk 0:02:41.1]}
31... Kf8 {[%clk 0:01:28.6]} 32. f3 {[%clk 0:02:33.1]} 32... Bb7 {[%clk
0:01:24.7]} 33. Ra7 {[%clk 0:02:29.6]} 33... Rb8 {[%clk 0:01:21.7]} 34. Ra5
{[%clk 0:02:25.7]} 34... Rc8 {[%clk 0:01:20.8]} 35. Rb5 {[%clk 0:02:21.5]} 35...
Ba8 {[%clk 0:01:16.1]} 36. Kf2 {[%clk 0:02:19.3]} 36... Ke7 {[%clk 0:01:14.2]}
37. Ke3 {[%clk 0:02:16.1]} 37... Kd6 {[%clk 0:01:13.4]} 38. Rb6+ {[%clk
0:02:12.9]} 38... Rc6 {[%clk 0:01:10.9]} 39. Rb8 {[%clk 0:02:08.3]} 39... Ra6
{[%clk 0:01:08.9]} 40. Rf8 {[%clk 0:01:56.6]} 40... Ke7 {[%clk 0:01:04.1]} 41.
Rh8 {[%clk 0:01:55.1]} 41... h5 {[%clk 0:01:03]} 42. g4 {[%clk 0:01:51.1]} 42...
hxg4 {[%clk 0:01:01.5]} 43. hxg4 {[%clk 0:01:48.9]} 43... Ra3 {[%clk 0:00:59.7]}
44. Rc8 {[%clk 0:01:29.3]} 44... Kd7 {[%clk 0:00:54.5]} 45. Rxc5 {[%clk
0:01:27.4]} 45... Bxf3 {[%clk 0:00:51.5]} 46. Kxf3 {[%clk 0:01:22.7]} 46...
Rxd3+ {[%clk 0:00:50.8]} 47. Ke4 {[%clk 0:01:21.3]} 47... Rd1 {[%clk 0:00:49.8]}
48. Rd5+ {[%clk 0:01:17.9]} 48... Ke6 {[%clk 0:00:45.6]} 49. Rxd1 {[%clk
0:01:16.2]} 1-0

[Event "Live Chess"]
[Site "Chess.com"]
[Date "2024.06.02"]
[Round "-"]
[White "DavrosLight"]
[Black "matt1979"]
[Result "0-1"]
[WhiteElo "763"]
[BlackElo "1396"]
[TimeControl "300"]
[EndTime "0:59:17 PDT"]
[Termination "matt1979 won by checkmate"]

1. e4 {[%clk 0:04:56.3]} 1... d6 {[%clk 0:04:58.1]} 2. Nc3 {[%clk 0:04:51.9]}
2... Nf6 {[%clk 0:04:56.3]} 3. Nf3 {[%clk 0:04:49.7]} 3... e5 {[%clk 0:04:54.9]}
4. Bc4 {[%clk 0:04:43.2]} 4... Be7 {[%clk 0:04:52.3]} 5. O-O {[%clk 0:04:42.2]}
5... O-O {[%clk 0:04:50.7]} 6. Qe2 {[%clk 0:04:40.8]} 6... Bg4 {[%clk
0:04:49.3]} 7. h3 {[%clk 0:04:39]} 7... Bh5 {[%clk 0:04:46.7]} 8. g4 {[%clk
0:04:35.4]} 8... Bg6 {[%clk 0:04:45.4]} 9. Kh2 {[%clk 0:04:34.6]} 9... c6 {[%clk
0:04:40]} 10. d3 {[%clk 0:04:30]} 10... Qc7 {[%clk 0:04:37.3]} 11. Rg1 {[%clk
0:04:28.6]} 11... Nbd7 {[%clk 0:04:31.5]} 12. h4 {[%clk 0:04:27.6]} 12... h6
{[%clk 0:04:25.9]} 13. h5 {[%clk 0:04:26.3]} 13... Bh7 {[%clk 0:04:24.2]} 14. g5
{[%clk 0:04:19.9]} 14... hxg5 {[%clk 0:04:20.2]} 15. Nxg5 {[%clk 0:04:17.6]}
15... Qd8 {[%clk 0:04:03.1]} 16. Ne6 {[%clk 0:04:15.7]} 16... fxe6 {[%clk
0:03:58.8]} 17. Bxe6+ {[%clk 0:04:13.9]} 17... Kh8 {[%clk 0:03:56]} 18. Bh6
{[%clk 0:04:06]} 18... Rg8 {[%clk 0:03:29.2]} 19. Rg4 {[%clk 0:03:30]} 19...
Nxg4+ {[%clk 0:03:24.7]} 20. Qxg4 {[%clk 0:03:28.8]} 20... Nf6 {[%clk
0:03:17.9]} 21. Qg2 {[%clk 0:02:57.2]} 21... Nxh5 {[%clk 0:03:03.7]} 22. Bxg8
{[%clk 0:02:53.2]} 22... Qxg8 {[%clk 0:02:59.4]} 23. Rg1 {[%clk 0:02:43.2]}
23... Bf6 {[%clk 0:02:52.4]} 24. Qg4 {[%clk 0:02:33.3]} 24... Nf4 {[%clk
0:02:38.3]} 25. Bxf4 {[%clk 0:02:02.2]} 25... exf4 {[%clk 0:02:31.8]} 26. Qxf4
{[%clk 0:02:01.1]} 26... Be5 {[%clk 0:02:29.7]} 27. Qxe5 {[%clk 0:01:48.5]}
27... dxe5 {[%clk 0:02:28.1]} 28. Ne2 {[%clk 0:01:43.8]} 28... Qf7 {[%clk
0:02:25.9]} 29. d4 {[%clk 0:01:40.5]} 29... Qxf2+ {[%clk 0:02:24]} 30. Rg2
{[%clk 0:01:37.8]} 30... Qh4+ {[%clk 0:02:17.9]} 31. Kg1 {[%clk 0:01:35.3]}
31... Rf8 {[%clk 0:02:08.9]} 32. dxe5 {[%clk 0:01:33.6]} 32... Qe1+ {[%clk
0:02:00.6]} 33. Kh2 {[%clk 0:01:29]} 33... Rf1 {[%clk 0:01:49.3]} 34. Rg1 {[%clk
0:01:21]} 34... Qxe2+ {[%clk 0:01:41.9]} 35. Rg2 {[%clk 0:01:16.4]} 35... Qh5+
{[%clk 0:01:37.8]} 36. Kg3 {[%clk 0:01:14.1]} 36... Rf3# {[%clk 0:01:34.4]} 0-1

[Event "Live Chess"]
[Site "Chess.com"]
[Date "2024.06.02"]
[Round "-"]
[White "Greenbecker"]
[Black "MagnersCarlsberg2870"]
[Result "0-1"]
[WhiteElo "1731"]
[BlackElo "1815"]
[TimeControl "300"]
[EndTime "1:00:34 PDT"]
[Termination "MagnersCarlsberg2870 won by resignation"]

1. e4 {[%clk 0:04:57.7]} 1... e5 {[%clk 0:04:58.6]} 2. Nf3 {[%clk 0:04:57]} 2...
Nf6 {[%clk 0:04:56.7]} 3. Nxe5 {[%clk 0:04:55]} 3... Nc6 {[%clk 0:04:53.9]} 4.
Nxc6 {[%clk 0:04:52.2]} 4... dxc6 {[%clk 0:04:50]} 5. Nc3 {[%clk 0:04:51.7]}
5... Bc5 {[%clk 0:04:48.7]} 6. Bc4 {[%clk 0:04:47.2]} 6... Bxf2+ {[%clk
0:04:46.6]} 7. Kf1 {[%clk 0:04:43.8]} 7... Bh4 {[%clk 0:04:42.1]} 8. Bxf7+
{[%clk 0:04:28]} 8... Kxf7 {[%clk 0:04:40.6]} 9. Qh5+ {[%clk 0:04:26.4]} 9...
Nxh5 {[%clk 0:04:37]} 10. g3 {[%clk 0:04:19.3]} 10... Qf6+ {[%clk 0:04:34.9]}
11. Kg2 {[%clk 0:04:16.6]} 11... Nf4+ {[%clk 0:04:15.9]} 12. gxf4 {[%clk
0:04:14.2]} 12... Qxf4 {[%clk 0:04:14.7]} 13. Rf1 {[%clk 0:04:13]} 13... Bh3+
{[%clk 0:04:11.9]} 0-1

[Event "Live Chess"]
[Site "Chess.com"]
[Date "2024.06.02"]
[Round "-"]
[White "hapehansen"]
[Black "peteopeteo"]
[Result "1-0"]
[WhiteElo "2249"]
[BlackElo "1549"]
[TimeControl "300"]
[EndTime "1:00:50 PDT"]
[Termination "hapehansen won by resignation"]

1. d4 {[%clk 0:04:55.4]} 1... d5 {[%clk 0:04:57.4]} 2. c4 {[%clk 0:04:54.5]}
2... c6 {[%clk 0:04:56.4]} 3. cxd5 {[%clk 0:04:51.5]} 3... cxd5 {[%clk
0:04:56.3]} 4. Nc3 {[%clk 0:04:50.5]} 4... Nf6 {[%clk 0:04:55.2]} 5. Bf4 {[%clk
0:04:49.7]} 5... Bf5 {[%clk 0:04:52.4]} 6. e3 {[%clk 0:04:46.6]} 6... Nc6 {[%clk
0:04:48.8]} 7. Bb5 {[%clk 0:04:41.4]} 7... a6 {[%clk 0:04:42.2]} 8. Bxc6+ {[%clk
0:04:39]} 8... bxc6 {[%clk 0:04:42.1]} 9. Nf3 {[%clk 0:04:36.9]} 9... e6 {[%clk
0:04:37.9]} 10. Rc1 {[%clk 0:04:35.7]} 10... Bb4 {[%clk 0:04:35.3]} 11. O-O
{[%clk 0:04:31.6]} 11... O-O {[%clk 0:04:32.6]} 12. a3 {[%clk 0:04:27.3]} 12...
Bxc3 {[%clk 0:04:28.3]} 13. Rxc3 {[%clk 0:04:24.8]} 13... Rc8 {[%clk 0:04:27.3]}
14. Qa4 {[%clk 0:04:21.7]} 14... Qb6 {[%clk 0:04:21.8]} 15. b4 {[%clk
0:04:13.1]} 15... Ne4 {[%clk 0:04:19.9]} 16. Rcc1 {[%clk 0:04:10]} 16... Qb5
{[%clk 0:04:14.5]} 17. Qd1 {[%clk 0:03:56.8]} 17... a5 {[%clk 0:04:07.7]} 18.
bxa5 {[%clk 0:03:51.7]} 18... Qxa5 {[%clk 0:04:07.6]} 19. Ne5 {[%clk 0:03:50.6]}
19... c5 {[%clk 0:04:01.4]} 20. f3 {[%clk 0:03:42.4]} 20... Nf6 {[%clk
0:03:47.9]} 21. g4 {[%clk 0:03:34.4]} 21... Bg6 {[%clk 0:03:43.4]} 22. g5 {[%clk
0:03:32.6]} 22... Nh5 {[%clk 0:03:40.4]} 23. Nd7 {[%clk 0:03:29.7]} 23... Nxf4
{[%clk 0:03:31]} 24. exf4 {[%clk 0:03:25.9]} 24... Qxa3 {[%clk 0:03:15.1]} 25.
Nxf8 {[%clk 0:03:18.5]} 25... Kxf8 {[%clk 0:03:07.2]} 26. dxc5 {[%clk
0:03:11.7]} 26... Qe3+ {[%clk 0:03:00.8]} 27. Kh1 {[%clk 0:03:06.3]} 27... Qxf4
{[%clk 0:02:39.3]} 28. c6 {[%clk 0:02:58.4]} 28... Bh5 {[%clk 0:02:13.1]} 29.
Qd3 {[%clk 0:02:40.3]} 29... Bg6 {[%clk 0:02:00]} 30. Qa3+ {[%clk 0:02:37]}
30... Kg8 {[%clk 0:01:53.8]} 31. Qe7 {[%clk 0:02:19.5]} 31... Qc7 {[%clk
0:01:50.4]} 32. Qxc7 {[%clk 0:02:10.8]} 32... Rxc7 {[%clk 0:01:49.5]} 33. Rc5
{[%clk 0:02:07.3]} 33... Kf8 {[%clk 0:01:45.1]} 34. Kg2 {[%clk 0:01:45.9]} 34...
Ke7 {[%clk 0:01:44.2]} 35. Rfc1 {[%clk 0:01:44.3]} 35... Kd6 {[%clk 0:01:43.3]}
36. Kf2 {[%clk 0:01:41.7]} 36... f5 {[%clk 0:01:37.8]} 37. f4 {[%clk 0:01:36]}
37... h6 {[%clk 0:01:31.8]} 38. h4 {[%clk 0:01:33.4]} 38... hxg5 {[%clk
0:01:30.3]} 39. hxg5 {[%clk 0:01:32]} 39... e5 {[%clk 0:01:27.6]} 40. Ke3 {[%clk
0:01:21.1]} 40... Bh5 {[%clk 0:01:16.9]} 41. fxe5+ {[%clk 0:01:14]} 41... Kxe5
{[%clk 0:01:13.5]} 42. Ra5 {[%clk 0:01:12.1]} 42... Kd6 {[%clk 0:01:09.7]} 43.
Kd4 {[%clk 0:01:06.5]} 43... Rxc6 {[%clk 0:01:03.4]} 44. Rxd5+ {[%clk
0:01:03.9]} 44... Kc7 {[%clk 0:01:01.7]} 45. Rxc6+ {[%clk 0:01:02.3]} 45... Kxc6
{[%clk 0:01:01.2]} 46. Rxf5 {[%clk 0:01:00]} 46... g6 {[%clk 0:00:57.4]} 47. Re5
{[%clk 0:00:46.7]} 47... Kd6 {[%clk 0:00:54.8]} 48. Re1 {[%clk 0:00:42.6]} 48...
Kc6 {[%clk 0:00:53.2]} 49. Ke5 {[%clk 0:00:39.4]} 49... Kd7 {[%clk 0:00:51.8]}
50. Kf6 {[%clk 0:00:38.5]} 50... Kd6 {[%clk 0:00:50.3]} 51. Re7 {[%clk
0:00:37.5]} 51... Kd5 {[%clk 0:00:47.6]} 52. Rg7 {[%clk 0:00:36.9]} 52... Kd6
{[%clk 0:00:46]} 53. Rxg6 {[%clk 0:00:35.9]} 53... Bxg6 {[%clk 0:00:45.9]} 54.
Kxg6 {[%clk 0:00:34.8]} 54... Ke7 {[%clk 0:00:45.4]} 55. Kh7 {[%clk 0:00:33.3]}
55... Kf8 {[%clk 0:00:45.3]} 56. g6 {[%clk 0:00:32.4]} 1-0

[Event "Live Chess"]
[Site "Chess.com"]
[Date "2024.06.02"]
[Round "-"]
[White "elephantgerrald"]
[Black "KeithArkell"]
[Result "0-1"]
[WhiteElo "852"]
[BlackElo "2409"]
[TimeControl "300"]
[EndTime "1:01:07 PDT"]
[Termination "KeithArkell won by checkmate"]

1. e4 {[%clk 0:04:56.8]} 1... c6 {[%clk 0:04:59.4]} 2. Nf3 {[%clk 0:04:54.4]}
2... d5 {[%clk 0:04:59.3]} 3. exd5 {[%clk 0:04:52.9]} 3... cxd5 {[%clk
0:04:58.3]} 4. d4 {[%clk 0:04:50.9]} 4... Nf6 {[%clk 0:04:57.9]} 5. Nc3 {[%clk
0:04:49.2]} 5... Nc6 {[%clk 0:04:57.2]} 6. Bb5 {[%clk 0:04:47.6]} 6... Bg4
{[%clk 0:04:56.6]} 7. Bxc6+ {[%clk 0:04:45.3]} 7... bxc6 {[%clk 0:04:56.1]} 8.
O-O {[%clk 0:04:43.7]} 8... e6 {[%clk 0:04:55.6]} 9. h3 {[%clk 0:04:41.8]} 9...
Bxf3 {[%clk 0:04:53]} 10. Qxf3 {[%clk 0:04:40.5]} 10... Be7 {[%clk 0:04:52.2]}
11. Bg5 {[%clk 0:04:38.8]} 11... O-O {[%clk 0:04:50.6]} 12. Bxf6 {[%clk
0:04:36.3]} 12... Bxf6 {[%clk 0:04:49.6]} 13. Rfe1 {[%clk 0:04:34.2]} 13... Qb6
{[%clk 0:04:48.7]} 14. b3 {[%clk 0:04:30]} 14... Bxd4 {[%clk 0:04:47.4]} 15. Rf1
{[%clk 0:04:23.4]} 15... Qa5 {[%clk 0:04:45.2]} 16. Ne2 {[%clk 0:04:13]} 16...
Bxa1 {[%clk 0:04:43.9]} 17. Rxa1 {[%clk 0:04:11]} 17... Qd2 {[%clk 0:04:42.9]}
18. Nf4 {[%clk 0:04:04.3]} 18... Qxc2 {[%clk 0:04:35.2]} 19. Nh5 {[%clk
0:03:51.3]} 19... Qg6 {[%clk 0:04:32.7]} 20. Nf4 {[%clk 0:03:45.8]} 20... Qf6
{[%clk 0:04:32]} 21. Qg3 {[%clk 0:03:43.3]} 21... Qxa1+ {[%clk 0:04:30.5]} 22.
Kh2 {[%clk 0:03:40.9]} 22... Qe5 {[%clk 0:04:27.5]} 23. Qg4 {[%clk 0:03:35.5]}
23... Kh8 {[%clk 0:04:21.3]} 24. f3 {[%clk 0:03:29.7]} 24... g5 {[%clk
0:04:19.9]} 25. g3 {[%clk 0:03:24.6]} 25... gxf4 {[%clk 0:04:18.8]} 26. gxf4
{[%clk 0:03:22.9]} 26... Qe2+ {[%clk 0:04:17.9]} 27. Kg3 {[%clk 0:03:22]} 27...
Rg8 {[%clk 0:04:17.2]} 28. Qxg8+ {[%clk 0:03:19.9]} 28... Rxg8+ {[%clk
0:04:15.7]} 29. Kh4 {[%clk 0:03:18.7]} 29... Qf2+ {[%clk 0:04:14.7]} 30. Kh5
{[%clk 0:03:17]} 30... Qxf3+ {[%clk 0:04:14.1]} 31. Kh6 {[%clk 0:03:15.5]} 31...
Qxh3# {[%clk 0:04:10.8]} 0-1

[Event "Live Chess"]
[Site "Chess.com"]
[Date "2024.06.02"]
[Round "-"]
[White "willc-h99"]
[Black "wadsy27"]
[Result "0-1"]
[WhiteElo "2619"]
[BlackElo "2588"]
[TimeControl "300"]
[EndTime "1:01:16 PDT"]
[Termination "wadsy27 won by resignation"]

1. d4 {[%clk 0:04:57.7]} 1... Nf6 {[%clk 0:04:58.4]} 2. Bg5 {[%clk 0:04:56.4]}
2... d5 {[%clk 0:04:57.5]} 3. Bxf6 {[%clk 0:04:49.7]} 3... exf6 {[%clk 0:04:57]}
4. e3 {[%clk 0:04:49.1]} 4... c6 {[%clk 0:04:56]} 5. g3 {[%clk 0:04:47.6]} 5...
Bd6 {[%clk 0:04:54.7]} 6. Bg2 {[%clk 0:04:46.6]} 6... h5 {[%clk 0:04:53.3]} 7.
h4 {[%clk 0:04:43]} 7... Bg4 {[%clk 0:04:52.1]} 8. Ne2 {[%clk 0:04:39.9]} 8...
Nd7 {[%clk 0:04:50.3]} 9. Qd3 {[%clk 0:04:26.9]} 9... Qc7 {[%clk 0:04:47.4]} 10.
Nd2 {[%clk 0:04:20.6]} 10... g6 {[%clk 0:04:45]} 11. c4 {[%clk 0:04:11.6]} 11...
dxc4 {[%clk 0:04:39.9]} 12. Nxc4 {[%clk 0:04:09.1]} 12... Bxe2 {[%clk
0:04:19.4]} 13. Nxd6+ {[%clk 0:04:03.5]} 13... Qxd6 {[%clk 0:04:18.7]} 14. Qxe2
{[%clk 0:04:02.9]} 14... f5 {[%clk 0:04:15.6]} 15. O-O {[%clk 0:04:01.1]} 15...
O-O {[%clk 0:04:15]} 16. a3 {[%clk 0:03:55.5]} 16... a5 {[%clk 0:04:13.6]} 17.
Rac1 {[%clk 0:03:53.4]} 17... Nf6 {[%clk 0:04:12.3]} 18. Rc5 {[%clk 0:03:46.1]}
18... Rfc8 {[%clk 0:04:11.1]} 19. Rfc1 {[%clk 0:03:44.5]} 19... Nd7 {[%clk
0:04:06.7]} 20. R5c3 {[%clk 0:03:42.7]} 20... a4 {[%clk 0:03:55.5]} 21. Qc2
{[%clk 0:03:39]} 21... Ra5 {[%clk 0:03:50.8]} 22. Rc4 {[%clk 0:03:35.2]} 22...
Rb8 {[%clk 0:03:49.5]} 23. Rxa4 {[%clk 0:03:31.9]} 23... Rxa4 {[%clk 0:03:47.2]}
24. Qxa4 {[%clk 0:03:29.6]} 24... Nf6 {[%clk 0:03:44.2]} 25. Qa7 {[%clk
0:03:24]} 25... Ng4 {[%clk 0:03:40.9]} 26. Qc5 {[%clk 0:03:18.5]} 26... Qf6
{[%clk 0:03:28.9]} 27. Bf3 {[%clk 0:03:10.5]} 27... Re8 {[%clk 0:03:23.9]} 28.
Kg2 {[%clk 0:03:05.6]} 28... Qe6 {[%clk 0:03:14.9]} 29. Rc3 {[%clk 0:02:49]}
29... Nf6 {[%clk 0:02:58.5]} 30. Rb3 {[%clk 0:02:41.9]} 30... Qxb3 {[%clk
0:02:56.9]} 0-1

[Event "Live Chess"]
[Site "Chess.com"]
[Date "2024.06.02"]
[Round "-"]
[White "yarek"]
[Black "Tatarinov_Maxim"]
[Result "0-1"]
[WhiteElo "1718"]
[BlackElo "2270"]
[TimeControl "300"]
[EndTime "1:01:57 PDT"]
[Termination "Tatarinov_Maxim won by checkmate"]

1. e4 {[%clk 0:04:55.1]} 1... c5 {[%clk 0:04:58.7]} 2. d4 {[%clk 0:04:54.1]}
2... cxd4 {[%clk 0:04:57.5]} 3. c3 {[%clk 0:04:53.7]} 3... dxc3 {[%clk
0:04:57.4]} 4. Nxc3 {[%clk 0:04:52.6]} 4... Nc6 {[%clk 0:04:56.8]} 5. Bc4 {[%clk
0:04:51.6]} 5... e6 {[%clk 0:04:56.1]} 6. Nf3 {[%clk 0:04:50.8]} 6... d6 {[%clk
0:04:55.5]} 7. O-O {[%clk 0:04:48.4]} 7... Nf6 {[%clk 0:04:54.9]} 8. Qe2 {[%clk
0:04:46.8]} 8... Be7 {[%clk 0:04:54.3]} 9. Rd1 {[%clk 0:04:45.6]} 9... e5 {[%clk
0:04:53.8]} 10. h3 {[%clk 0:04:36.7]} 10... O-O {[%clk 0:04:52.2]} 11. Be3
{[%clk 0:04:32.1]} 11... Be6 {[%clk 0:04:50.7]} 12. Rac1 {[%clk 0:04:14.6]}
12... Qd7 {[%clk 0:04:34.5]} 13. Bxe6 {[%clk 0:03:55.1]} 13... Qxe6 {[%clk
0:04:34.4]} 14. Ng5 {[%clk 0:03:42]} 14... Qd7 {[%clk 0:04:30.3]} 15. Qf3 {[%clk
0:03:33.7]} 15... h6 {[%clk 0:04:27.3]} 16. Nxf7 {[%clk 0:02:57.5]} 16... Rxf7
{[%clk 0:04:23.6]} 17. Nb5 {[%clk 0:02:55.7]} 17... a6 {[%clk 0:04:09.8]} 18.
Na3 {[%clk 0:02:44.7]} 18... Nd5 {[%clk 0:04:01.7]} 19. Qg3 {[%clk 0:02:37.7]}
19... Nxe3 {[%clk 0:04:00]} 20. Qxe3 {[%clk 0:02:34.4]} 20... Nd4 {[%clk
0:03:58.2]} 21. Nc4 {[%clk 0:02:31]} 21... Qe6 {[%clk 0:03:57.1]} 22. Nb6 {[%clk
0:02:28.1]} 22... Raf8 {[%clk 0:03:55.5]} 23. f3 {[%clk 0:02:25.5]} 23... Bg5
{[%clk 0:03:54.1]} 24. Qd3 {[%clk 0:02:21]} 24... Bxc1 {[%clk 0:03:52.1]} 25.
Rxc1 {[%clk 0:02:19.2]} 25... Kh7 {[%clk 0:03:35.1]} 26. Nd5 {[%clk 0:02:10.7]}
26... Nxf3+ {[%clk 0:03:28.2]} 27. gxf3 {[%clk 0:02:06.4]} 27... Rxf3 {[%clk
0:03:28.1]} 28. Qe2 {[%clk 0:02:02.6]} 28... Qxh3 {[%clk 0:03:26.7]} 29. Ne7
{[%clk 0:01:52.4]} 29... Rg3+ {[%clk 0:03:25]} 30. Qg2 {[%clk 0:01:47.4]} 30...
Qxg2# {[%clk 0:03:23.5]} 0-1

[Event "Live Chess"]
[Site "Chess.com"]
[Date "2024.06.02"]
[Round "-"]
[White "jimwad"]
[Black "Sokolik_UA"]
[Result "1-0"]
[WhiteElo "1328"]
[BlackElo "810"]
[TimeControl "300"]
[EndTime "1:02:10 PDT"]
[Termination "jimwad won by resignation"]

1. c4 {[%clk 0:04:59.3]} 1... e6 {[%clk 0:04:59.4]} 2. g3 {[%clk 0:04:58.2]}
2... d5 {[%clk 0:04:58.6]} 3. cxd5 {[%clk 0:04:56.9]} 3... Qxd5 {[%clk
0:04:57.1]} 4. Nf3 {[%clk 0:04:55.9]} 4... c5 {[%clk 0:04:56.1]} 5. Bg2 {[%clk
0:04:54.9]} 5... Nf6 {[%clk 0:04:52.9]} 6. Nh4 {[%clk 0:04:51.9]} 6... Qd6
{[%clk 0:04:46.8]} 7. Nc3 {[%clk 0:04:49.7]} 7... Bd7 {[%clk 0:04:42.3]} 8. O-O
{[%clk 0:04:47.8]} 8... Nc6 {[%clk 0:04:40.4]} 9. d3 {[%clk 0:04:43.9]} 9... Be7
{[%clk 0:04:38.7]} 10. Bf4 {[%clk 0:04:41.8]} 10... e5 {[%clk 0:04:29.2]} 11.
Be3 {[%clk 0:04:26.9]} 11... O-O {[%clk 0:04:26.3]} 12. Ne4 {[%clk 0:04:25.7]}
12... Bg4 {[%clk 0:04:19]} 13. Nxd6 {[%clk 0:04:21.7]} 13... Bxd6 {[%clk
0:04:17.5]} 14. Nf3 {[%clk 0:04:14.3]} 14... e4 {[%clk 0:04:13.9]} 15. dxe4
{[%clk 0:04:12.6]} 15... Nxe4 {[%clk 0:04:12.6]} 16. Ne1 {[%clk 0:03:57.8]}
16... Nxg3 {[%clk 0:04:06.1]} 17. hxg3 {[%clk 0:03:55.7]} 17... Ne5 {[%clk
0:04:02.3]} 18. Qxd6 {[%clk 0:03:51.3]} 18... Ng6 {[%clk 0:04:00.5]} 19. f3
{[%clk 0:03:36.5]} 19... Be6 {[%clk 0:03:55.6]} 20. Qxc5 {[%clk 0:03:31.7]}
20... b6 {[%clk 0:03:54.6]} 21. Qc3 {[%clk 0:03:19.8]} 21... Rac8 {[%clk
0:03:51.4]} 22. Qa3 {[%clk 0:03:18.1]} 22... a5 {[%clk 0:03:32.6]} 23. Bxb6
{[%clk 0:03:15.6]} 23... Rc6 {[%clk 0:03:24.6]} 24. Bc5 {[%clk 0:03:13.6]} 1-0

[Event "Live Chess"]
[Site "Chess.com"]
[Date "2024.06.02"]
[Round "-"]
[White "nyclone"]
[Black "Ksenia_2013"]
[Result "0-1"]
[WhiteElo "1126"]
[BlackElo "1032"]
[TimeControl "300"]
[EndTime "1:02:41 PDT"]
[Termination "Ksenia_2013 won on time"]

1. e4 {[%clk 0:04:56.9]} 1... e5 {[%clk 0:04:58.2]} 2. Nc3 {[%clk 0:04:56.3]}
2... Nf6 {[%clk 0:04:55]} 3. Bc4 {[%clk 0:04:53.5]} 3... Bc5 {[%clk 0:04:53.3]}
4. d3 {[%clk 0:04:42.2]} 4... O-O {[%clk 0:04:51.3]} 5. Nf3 {[%clk 0:04:39.5]}
5... Nc6 {[%clk 0:04:48.4]} 6. O-O {[%clk 0:04:35.8]} 6... d6 {[%clk 0:04:45.9]}
7. Be3 {[%clk 0:04:29.4]} 7... Bxe3 {[%clk 0:04:41.6]} 8. fxe3 {[%clk
0:04:27.9]} 8... Ng4 {[%clk 0:04:35.3]} 9. Qe1 {[%clk 0:04:00.2]} 9... Nb4
{[%clk 0:04:31]} 10. Bb3 {[%clk 0:03:44]} 10... Be6 {[%clk 0:04:26.5]} 11. Nd5
{[%clk 0:03:16.3]} 11... Bxd5 {[%clk 0:04:20.3]} 12. exd5 {[%clk 0:03:11.4]}
12... a5 {[%clk 0:04:07.3]} 13. a3 {[%clk 0:03:10.5]} 13... e4 {[%clk
0:03:58.8]} 14. dxe4 {[%clk 0:02:46]} 14... a4 {[%clk 0:03:52.3]} 15. Bc4 {[%clk
0:02:36.7]} 15... Nxc2 {[%clk 0:03:47.3]} 16. Qg3 {[%clk 0:02:26.5]} 16... Qc8
{[%clk 0:03:41.4]} 17. Rac1 {[%clk 0:01:50.3]} 17... Ncxe3 {[%clk 0:03:37.6]}
18. Rfe1 {[%clk 0:01:36.6]} 18... Nxc4 {[%clk 0:03:24.6]} 19. Rxc4 {[%clk
0:01:34.8]} 19... b5 {[%clk 0:03:22.8]} 20. Rb4 {[%clk 0:01:30.8]} 20... h5
{[%clk 0:03:19.3]} 21. h3 {[%clk 0:00:58.7]} 21... Nf6 {[%clk 0:03:08.2]} 22.
Rxb5 {[%clk 0:00:54.5]} 22... Qa6 {[%clk 0:03:01.6]} 23. Rb4 {[%clk 0:00:49.7]}
23... Qa7+ {[%clk 0:02:59]} 24. Kh1 {[%clk 0:00:44.2]} 24... Rab8 {[%clk
0:02:55.3]} 25. Ra1 {[%clk 0:00:26.6]} 25... Rxb4 {[%clk 0:02:49.6]} 26. axb4
{[%clk 0:00:26.1]} 26... a3 {[%clk 0:02:44.1]} 27. Qe1 {[%clk 0:00:21.9]} 27...
Qa4 {[%clk 0:02:39.2]} 28. bxa3 {[%clk 0:00:19.6]} 28... Ra8 {[%clk 0:02:31.3]}
29. Qc1 {[%clk 0:00:17.1]} 29... Qa7 {[%clk 0:02:21.9]} 30. Ng5 {[%clk
0:00:15.2]} 30... Qd4 {[%clk 0:01:48]} 31. Ra2 {[%clk 0:00:08.7]} 31... Nxe4
{[%clk 0:01:39.9]} 32. Nxe4 {[%clk 0:00:06.7]} 32... Qxe4 {[%clk 0:01:34.3]} 33.
Qa1 {[%clk 0:00:06.1]} 33... Qxd5 {[%clk 0:01:28.3]} 34. a4 {[%clk 0:00:05.6]}
34... c5 {[%clk 0:01:24]} 35. b5 {[%clk 0:00:04.2]} 35... Qb7 {[%clk 0:01:19.5]}
36. a5 {[%clk 0:00:03.6]} 36... Qxb5 {[%clk 0:00:58.7]} 37. a6 {[%clk
0:00:03.3]} 37... Qb8 {[%clk 0:00:48.1]} 38. a7 {[%clk 0:00:02.9]} 38... Qe8
{[%clk 0:00:44]} 39. Rb2 {[%clk 0:00:01.8]} 39... h4 {[%clk 0:00:28.9]} 0-1